bitfinex/quotes_ETHUSD_20250908
["timestamp","ask_amount","ask_price","bid_price","bid_amount"]
[1757340739595,14.7592,4332.9,4332.8,12.63397636]
[1757340740097,15.9892,4332.9,4332.8,12.63397636]
[1757340741297,15.9892,4332.9,4332.8,12.16617636]
[1757340741496,17.2192,4332.9,4332.8,5.75327636]
[1757340741707,17.2192,4332.9,4332.8,9.69027636]
[1757340742230,17.2192,4332.9,4332.8,14.0109111]
[1757340742596,17.2192,4332.9,4332.8,7.1302111]
[1757340742800,19.1955,4332.9,4332.8,3.027]
[1757340743002,18.7447,4332.9,4332.8,5.33497636]
[1757340743634,18.4492,4332.9,4332.8,5.33497636]
[1757340743836,18.4492,4332.9,4332.8,5.65017636]
[1757340744037,18.4492,4332.9,4332.8,9.76640192]
[1757340744343,19.6792,4332.9,4332.8,9.76640192]
[1757340744507,19.6792,4332.9,4332.8,9.32670192]
[1757340745117,19.6792,4332.9,4332.8,6.95490192]
[1757340745317,19.978,4332.9,4332.8,9.38617636]
[1757340745729,21.208,4332.9,4332.8,9.38617636]
[1757340745925,21.208,4332.9,4332.8,5.45017636]
[1757340746168,21.208,4332.9,4332.8,0.1422]
[1757340746169,23.9304,4332.9,4332.8,0.1422]
[1757340746318,23.9304,4332.9,4332.8,0.027]
[1757340746661,28.50623107,4332.9,4332.8,0.027]
[1757340747227,29.73623107,4332.9,4332.8,0.027]
[1757340747434,30.52823107,4332.9,4332.8,0.027]
[1757340748676,31.75823107,4332.9,4332.8,0.027]
[1757340749267,32.59430797,4332.9,4332.8,0.027]
[1757340749953,36.13223107,4332.9,4332.8,0.027]
[1757340751358,37.36223107,4332.9,4332.8,0.027]
[1757340752774,38.59223107,4332.9,4332.8,0.027]
[1757340753940,39.82223107,4332.9,4332.8,0.027]
[1757340755512,41.05223107,4332.9,4332.8,0.027]
[1757340756004,41.84423107,4332.9,4332.8,0.027]
[1757340756321,41.05223107,4332.9,4332.8,0.027]
[1757340756974,35.32503107,4332.9,4332.8,0.027]
[1757340757174,42.28223107,4332.9,4332.8,0.027]
[1757340758221,39.98793107,4332.9,4332.8,0.027]
[1757340758515,41.21793107,4332.9,4332.8,0.027]
[1757340758671,43.51223107,4332.9,4332.8,0.027]
[1757340759588,41.21793107,4332.9,4332.8,0.027]
[1757340759788,42.44793107,4332.9,4332.8,0.027]
[1757340759983,42.01983107,4332.9,4332.8,0.027]
[1757340760916,42.44793107,4332.9,4332.8,0.027]
[1757340761106,43.67793107,4332.9,4332.8,0.027]
[1757340761679,45.97223107,4332.9,4332.8,0.027]
[1757340762205,40.64310797,4332.9,4332.8,0.027]
[1757340762411,34.4392,4332.9,4332.8,8.46167636]
[1757340762736,35.6692,4332.9,4332.8,8.46167636]
[1757340762896,35.6692,4332.9,4332.8,5.714]
[1757340763082,35.6692,4332.9,4332.8,3.3422]
[1757340763918,35.6692,4332.9,4332.8,0.027]
[1757340763919,40.41791144,4332.9,4332.8,0.027]
[1757340764118,40.84601144,4332.9,4332.8,0.027]
[1757340764307,40.41791144,4332.9,4332.8,0.027]
[1757340764678,37.81118834,4332.9,4332.8,0.3422]
[1757340764884,40.8334,4332.9,4332.8,2.714]
[1757340765307,38.1284,4332.9,4332.8,0.3422]
[1757340765630,42.0634,4332.9,4332.8,0.027]
[1757340765783,44.6701231,4332.9,4332.8,0.027]
[1757340766724,42.3622,4332.9,4332.8,0.027]
[1757340766897,48.16803107,4332.9,4332.8,0.027]
[1757340767329,45.56230797,4332.9,4332.8,0.027]
[1757340767546,45.56230797,4332.9,4332.8,0.3422]
[1757340767747,43.2944,4332.9,4332.8,0.3422]
[1757340767955,39.3594,4332.9,4332.8,3.1537]
[1757340768140,43.2944,4332.9,4332.8,3.1537]
[1757340768474,44.5244,4332.9,4332.8,2.714]
[1757340768617,44.5244,4332.9,4332.8,0.3422]
[1757340769652,45.7544,4332.9,4332.8,0.3422]
[1757340771024,46.9844,4332.9,4332.8,0.3422]
[1757340771226,46.9844,4332.9,4332.8,2.714]
[1757340772427,48.2144,4332.9,4332.8,5.46167636]
[1757340772621,48.2134,4332.9,4332.8,3.1537]
[1757340772934,48.2134,4332.9,4332.8,2.65017636]
[1757340773132,48.2134,4332.9,4332.8,2.714]
[1757340773655,48.2134,4332.9,4332.8,0.3422]
[1757340773815,49.4434,4332.9,4332.8,0.3422]
[1757340774214,49.4434,4332.9,4332.8,2.65017636]
[1757340774413,49.4434,4332.9,4332.8,0.3422]
[1757340774652,49.7512,4332.9,4332.8,0.027]
[1757340775028,54.78760797,4332.9,4332.8,0.027]
[1757340775229,56.01760797,4332.9,4332.8,0.027]
[1757340775837,53.69560797,4332.9,4332.8,0.027]
[1757340776369,53.24910797,4332.9,4332.8,0.027]
[1757340776564,57.24760797,4332.9,4332.8,0.027]
[1757340777070,54.92560797,4332.9,4332.8,0.027]
[1757340777290,59.55553107,4332.9,4332.8,0.027]
[1757340777856,60.78553107,4332.9,4332.8,0.027]
[1757340779253,62.01553107,4332.9,4332.8,0.027]
[1757340779736,63.02230122,4332.9,4332.8,0.027]
[1757340780519,64.25230122,4332.9,4332.8,0.027]
[1757340781961,65.48230122,4332.9,4332.8,0.027]
[1757340783158,61.70603107,4332.9,4332.8,0.027]
[1757340783364,65.70453107,4332.9,4332.8,0.027]
[1757340783971,63.38253107,4332.9,4332.8,0.027]
[1757340784565,60.32030797,4332.9,4332.8,0.3197]
[1757340784752,59.2824,4332.9,4332.8,3.2101]
[1757340785151,55.3494,4332.9,4332.8,2.7508]
[1757340785352,59.5902,4332.9,4332.8,0.027]
[1757340785552,61.85810797,4332.9,4332.8,0.027]
[1757340785875,64.16603107,4332.9,4332.8,0.027]
[1757340786089,68.16453107,4332.9,4332.8,0.027]
[1757340786589,69.17129374,4332.9,4332.8,0.027]
[1757340787465,70.40129374,4332.9,4332.8,0.027]
[1757340788860,71.63129374,4332.9,4332.8,0.027]
[1757340789074,71.84611144,4332.9,4332.8,0.027]
[1757340789274,71.84531144,4332.9,4332.8,0.027]
[1757340790400,73.07531144,4332.9,4332.8,0.027]
[1757340791295,72.86049374,4332.9,4332.8,0.027]
[1757340791776,74.09049374,4332.9,4332.8,0.027]
[1757340792173,74.09039188,4332.9,4332.8,0.027]
[1757340793392,75.32039188,4332.9,4332.8,0.027]
[1757340794807,76.55039188,4332.9,4332.8,0.027]
[1757340795798,76.10389188,4332.9,4332.8,0.027]
[1757340796001,76.55039188,4332.9,4332.8,0.027]
[1757340796180,77.78039188,4332.9,4332.8,0.027]
[1757340797400,70.77109188,4332.9,4332.8,0.027]
[1757340797609,75.93409188,4332.9,4332.8,0.3197]
[1757340797969,75.71943107,4332.9,4332.8,0.027]
[1757340798998,76.94943107,4332.9,4332.8,0.3197]
[1757340799570,77.25723107,4332.9,4332.8,0.027]
[1757340800201,80.24030333,4332.9,4332.8,0.027]
[1757340800502,78.70180333,4332.9,4332.8,0.027]
[1757340801013,0.9072,4332.8,4332.3,0.002]
[1757340801209,16.98953106,4332.4,4332.3,0.002]
[1757340801381,23.92484287,4332.4,4332.3,0.002]
[1757340801702,26.69334287,4332.4,4332.3,0.002]
[1757340801888,27.92334287,4332.4,4332.3,0.002]
[1757340802096,30.19125084,4332.4,4332.3,0.002]
[1757340802305,21.73190923,4332.4,4332.3,0.002]
[1757340803306,22.96190923,4332.4,4332.3,0.002]
[1757340804686,24.19190923,4332.4,4332.3,0.002]
[1757340805826,21.76190923,4332.4,4332.3,0.002]
[1757340806027,22.99190923,4332.4,4332.3,0.002]
[1757340806222,20.66971008,4332.4,4332.3,0.002]
[1757340806522,20.17552969,4332.4,4332.3,0.002]
[1757340806703,22.6050896,4332.4,4332.3,0.002]
[1757340807230,23.09937705,4332.4,4332.3,0.002]
[1757340807391,24.32937705,4332.4,4332.3,0.002]
[1757340807892,24.32937705,4332.4,4331.5,0.002]
[1757340807893,3.10061575,4331.6,4331.5,0.002]
[1757340808226,12.23371535,4331.6,4331.5,0.002]
[1757340808425,15.41961535,4331.6,4331.5,0.002]
[1757340808727,19.07961535,4331.6,4331.5,0.002]
[1757340808914,19.07961535,4331.6,4331.1,1e-08]
[1757340808915,3.10082896,4331.2,4331.1,1e-08]
[1757340809097,7.7883598,4331.2,4331.1,1e-08]
[1757340809299,10.9742598,4331.2,4331.1,1e-08]
[1757340809901,10.9742598,4331.2,4330.3,0.002]
[1757340809902,3.222,4330.7,4330.3,0.002]
[1757340810226,3.10125549,4330.4,4330.3,0.002]
[1757340810413,3.10125549,4330.4,4330.3,0.4465]
[1757340810616,7.87450126,4330.4,4330.3,3.0348]
[1757340811502,7.87450126,4330.4,4330.3,2.5903]
[1757340811832,9.10450126,4330.4,4330.3,2.5903]
[1757340812501,9.10450126,4330.4,4330.3,0.2966]
[1757340812703,9.41260126,4330.4,4330.3,0.002]
[1757340812937,12.29040126,4330.4,4330.3,0.002]
[1757340813232,13.52040126,4330.4,4330.3,0.002]
[1757340813622,10.64260126,4330.4,4330.3,0.002]
[1757340814243,13.52040126,4330.4,4330.3,0.002]
[1757340814395,14.75040126,4330.4,4330.3,0.002]
[1757340814796,14.74960126,4330.4,4330.3,0.002]
[1757340815019,11.87180126,4330.4,4330.3,0.002]
[1757340815457,12.32000126,4330.4,4330.3,0.002]
[1757340815759,13.55000126,4330.4,4330.3,0.002]
[1757340816120,9.61800126,4330.4,4330.3,0.002]
[1757340816319,15.97960126,4330.4,4330.3,0.002]
[1757340816544,13.55000126,4330.4,4330.3,0.002]
[1757340816774,8.06970126,4330.4,4330.3,0.2966]
[1757340816924,12.00170126,4330.4,4330.3,3.0348]
[1757340817124,14.02370126,4330.4,4330.3,3.0348]
[1757340817325,14.02370126,4330.4,4330.3,0.2966]
[1757340817837,13.23170126,4330.4,4330.3,3.0348]
[1757340818243,12.39045549,4330.4,4330.3,3.0348]
[1757340818625,13.62045549,4330.4,4330.3,3.0348]
[1757340820059,14.85045549,4330.4,4330.3,0.2966]
[1757340820951,12.542,4330.4,4330.3,3.0348]
[1757340821523,13.772,4330.4,4330.3,3.0348]
[1757340822137,9.84,4330.4,4330.3,3.0348]
[1757340822356,9.84,4330.4,4330.3,5.34410882]
[1757340822767,11.07,4330.4,4330.3,5.34410882]
[1757340824261,12.3,4330.4,4330.3,8.34410882]
[1757340825162,12.3,4330.4,4330.3,5.5903]
[1757340825367,12.3,4330.4,4330.3,6.0348]
[1757340825563,13.53,4330.4,4330.3,6.0348]
[1757340825745,13.53,4330.4,4330.3,8.34410882]
[1757340826463,13.53,4330.4,4330.3,6.0348]
[1757340827056,14.76,4330.4,4330.3,6.0348]
[1757340827245,14.76,4330.4,4330.3,8.34410882]
[1757340827441,14.76,4330.4,4330.3,6.0348]
[1757340827645,18.691,4330.4,4330.3,6.0348]
[1757340827958,18.691,4330.4,4330.3,5.5903]
[1757340828470,19.921,4330.4,4330.3,5.5903]
[1757340828986,19.921,4330.4,4330.3,6.0348]
[1757340829184,19.921,4330.4,4330.3,8.94998882]
[1757340829479,15.99,4330.4,4330.3,8.94998882]
[1757340829682,17.22,4330.4,4330.3,8.94998882]
[1757340830316,17.22,4330.4,4330.3,8.34410882]
[1757340831025,18.45,4330.4,4330.3,8.34410882]
[1757340832325,19.68,4330.4,4330.3,8.34410882]
[1757340832490,19.68,4330.4,4330.3,6.0348]
[1757340832685,19.68,4330.4,4330.3,8.34410882]
[1757340833583,20.91,4330.4,4330.3,8.34410882]
[1757340834993,22.14,4330.4,4330.3,8.34410882]
[1757340836427,23.37,4330.4,4330.3,8.34410882]
[1757340837189,23.37,4330.4,4330.3,5.5903]
[1757340837550,27.6047,4330.4,4330.3,3.002]
[1757340837709,31.10260797,4330.4,4330.3,3.002]
[1757340837891,31.53470797,4330.4,4330.3,3.002]
[1757340838089,31.53470797,4330.4,4330.3,0.002]
[1757340838090,33.84396346,4330.4,4330.3,0.002]
[1757340838325,36.24466346,4330.4,4330.3,0.002]
[1757340838622,33.93540797,4330.4,4330.3,0.002]
[1757340838924,36.24466346,4330.4,4330.3,0.002]
[1757340839096,32.33260797,4330.4,4330.3,0.002]
[1757340839426,35.07396346,4330.4,4330.3,0.002]
[1757340839623,35.07496346,4330.4,4330.3,0.002]
[1757340839825,34.64286346,4330.4,4330.3,0.002]
[1757340840050,32.02890797,4330.4,4330.3,0.002]
[1757340840194,32.02810797,4330.4,4330.3,0.002]
[1757340840390,35.87206346,4330.4,4330.3,0.002]
[1757340840592,30.9902,4330.4,4330.3,0.002]
[1757340840793,30.9902,4330.4,4330.3,0.3017]
[1757340841007,30.9902,4330.4,4330.3,0.002]
[1757340841634,30.9902,4330.4,4330.3,0.3017]
[1757340841805,28.2902,4330.4,4330.3,3.2161]
[1757340842131,32.2192,4330.4,4330.3,5.52540882]
[1757340842599,28.2902,4330.4,4330.3,5.52540882]
[1757340843355,28.2902,4330.4,4330.3,9.3112893]
[1757340843356,29.5202,4330.4,4330.3,9.3112893]
[1757340843649,29.5202,4330.4,4330.3,13.2402893]
[1757340844212,29.5202,4330.4,4330.3,8.06110882]
[1757340844616,30.7502,4330.4,4330.3,8.52540882]
[1757340844997,30.7502,4330.4,4330.3,12.45440882]
[1757340845946,30.7502,4330.4,4330.3,5.61100882]
[1757340846111,31.9802,4330.4,4330.3,8.52540882]
[1757340847543,33.2102,4330.4,4330.3,5.61100882]
[1757340847752,35.78280797,4330.4,4330.3,3.93]
[1757340847902,33.2102,4330.4,4330.3,0.002]
[1757340848537,33.5149,4330.4,4330.3,0.002]
[1757340848761,34.7449,4330.4,4330.3,0.002]
[1757340849281,35.177,4330.4,4330.3,0.002]
[1757340849439,37.5777,4330.4,4330.3,0.002]
[1757340849774,39.84560797,4330.4,4330.3,0.002]
[1757340850276,38.24280797,4330.4,4330.3,0.002]
[1757340850838,35.6702,4330.4,4330.3,2.61100882]
[1757340851374,36.9002,4330.4,4330.3,2.61100882]
[1757340851837,36.9002,4330.4,4330.3,0.3017]
[1757340852244,36.9002,4330.4,4330.3,2.61100882]
[1757340852645,36.9002,4330.4,4330.3,0.002]
[1757340852861,38.1302,4330.4,4330.3,0.002]
[1757340853075,38.1302,4330.4,4330.3,0.3017]
[1757340853378,38.1302,4330.4,4330.3,5.52540882]
[1757340853785,38.1302,4330.4,4330.3,13.64261025]
[1757340854283,39.3602,4330.4,4330.3,13.64261025]
[1757340855179,39.3602,4330.4,4330.3,12.45240882]
[1757340855367,39.3602,4330.4,4330.3,42.45240882]
[1757340855567,40.5902,4330.4,4330.3,42.45240882]
[1757340856867,41.8202,4330.4,4330.3,42.45240882]
[1757340857612,41.8202,4330.4,4330.3,38.52540882]
[1757340857753,41.8202,4330.4,4330.3,42.45240882]
[1757340858255,43.0502,4330.4,4330.3,42.45240882]
[1757340859671,44.2802,4330.4,4330.3,42.45240882]
[1757340860970,45.5102,4330.4,4330.3,42.45240882]
[1757340862260,46.7402,4330.4,4330.3,42.45240882]
[1757340863257,46.7402,4330.4,4330.3,38.06110882]
[1757340863460,49.7747,4330.4,4330.3,0.002]
[1757340863697,54.9307,4330.4,4330.3,0.002]
[1757340865087,56.1607,4330.4,4330.3,0.002]
[1757340865663,56.1599,4330.4,4330.3,0.002]
[1757340865868,58.42780797,4330.4,4330.3,0.002]
[1757340866302,59.65780797,4330.4,4330.3,0.002]
[1757340866978,55.26060797,4330.4,4330.3,0.002]
[1757340867175,54.6601,4330.4,4330.3,0.002]
[1757340867419,51.2053,4330.4,4330.3,0.002]
[1757340867577,58.6199,4330.4,4330.3,0.002]
[1757340867966,58.6199,4330.4,4330.3,2.31130882]
[1757340868194,58.6199,4330.4,4330.3,0.002]
[1757340868371,60.88780797,4330.4,4330.3,0.002]
[1757340868981,62.11780797,4330.4,4330.3,0.002]
[1757340870408,63.34780797,4330.4,4330.3,0.002]
[1757340870707,63.34780797,4330.4,4330.3,2.31130882]
[1757340870894,63.34780797,4330.4,4330.3,0.002]
[1757340871700,64.57780797,4330.4,4330.3,0.002]
[1757340873223,65.80780797,4330.4,4330.3,0.002]
[1757340874633,0.792,4330.3,4329.4,0.002]
[1757340874945,2.30984223,4329.3,4328.8,0.025]
[1757340875097,0.792,4328.9,4328.8,0.025]
[1757340875294,7.06505567,4328.9,4328.8,0.025]
[1757340875498,10.08805567,4328.9,4328.8,0.025]
[1757340875721,11.50506147,4328.9,4328.8,0.025]
[1757340875893,12.73506147,4328.9,4328.8,0.025]
[1757340876099,12.94939116,4328.9,4328.8,0.025]
[1757340876306,12.73506147,4328.9,4328.8,0.025]
[1757340877051,8.77206147,4328.9,4328.8,0.025]
[1757340877197,11.94106147,4328.9,4328.8,0.025]
[1757340877546,13.17106147,4328.9,4328.8,0.025]
[1757340878810,14.40106147,4328.9,4328.8,0.025]
[1757340878998,3.69,4328.9,4328.8,0.025]
[1757340879331,7.65,4328.9,4328.8,0.3363]
[1757340879531,7.65,4328.9,4328.8,0.025]
[1757340879919,7.9432,4328.9,4328.8,0.025]
[1757340880327,9.1732,4328.9,4328.8,0.025]
[1757340880854,15.59493307,4328.9,4328.8,0.025]
[1757340881642,16.82493307,4328.9,4328.8,0.025]
[1757340882416,12.2562774,4328.9,4328.8,0.025]
[1757340882623,11.7860774,4328.9,4328.8,0.025]
[1757340883131,15.32613307,4328.9,4328.8,0.025]
[1757340883332,18.05593307,4328.9,4328.8,0.025]
[1757340884423,19.28593307,4328.9,4328.8,0.025]
[1757340884818,14.2460774,4328.9,4328.8,0.025]
[1757340885230,14.7172774,4328.9,4328.8,0.025]
[1757340885724,9.84,4328.9,4328.8,0.3363]
[1757340885920,13.796,4328.9,4328.8,0.3363]
[1757340886125,13.9112,4328.9,4328.8,2.6642]
[1757340886358,13.9112,4328.9,4328.8,0.3363]
[1757340886890,13.9112,4328.9,4328.8,0.025]
[1757340887090,15.1412,4328.9,4328.8,0.025]
[1757340887382,15.1412,4328.9,4328.8,0.3363]
[1757340888161,20.08350974,4328.9,4328.8,0.025]
[1757340888346,22.39356541,4328.9,4328.8,0.025]
[1757340888545,23.62356541,4328.9,4328.8,0.025]
[1757340890106,24.85356541,4328.9,4328.8,0.025]
[1757340891061,24.85276541,4328.9,4328.8,0.025]
[1757340891585,24.85276541,4328.9,4328.8,0.027]
[1757340891785,26.08276541,4328.9,4328.8,0.027]
[1757340891951,26.76056541,4328.9,4328.8,0.027]
[1757340893289,27.99056541,4328.9,4328.8,0.027]
[1757340894494,29.22056541,4328.9,4328.8,0.027]
[1757340895114,29.43433156,4328.9,4328.8,0.027]
[1757340895897,29.43433156,4328.9,4327.8,0.025]
[1757340895898,2.43,4327.9,4327.8,0.025]
[1757340896099,12.26612289,4327.9,4327.8,0.025]
[1757340896405,8.48029995,4327.9,4327.8,0.025]
[1757340896696,12.2315338,4327.9,4327.8,0.025]
[1757340897193,12.05608943,4327.9,4327.8,0.025]
[1757340897400,13.49275198,4327.9,4327.8,0.025]
[1757340897608,14.72275198,4327.9,4327.8,0.025]
[1757340898373,18.1090901,4327.9,4327.8,0.025]
[1757340898571,18.32270193,4327.9,4327.8,0.025]
[1757340898977,19.55270193,4327.9,4327.8,0.025]
[1757340899894,6.10264282,4327.8,4326.8,0.025]
[1757340900075,3.1029632,4327.2,4326.8,0.025]
[1757340900266,7.3656632,4327.2,4326.8,0.025]
[1757340900467,11.5114632,4327.2,4326.8,0.025]
[1757340901319,8.5956632,4327.2,4326.8,0.025]
[1757340901529,8.2959632,4327.2,4326.8,0.025]
[1757340901693,9.426007,4327.2,4326.8,0.025]
[1757340901892,10.656007,4327.2,4326.8,0.025]
[1757340902070,10.955707,4327.2,4326.8,0.025]
[1757340902770,13.871507,4327.2,4326.8,0.025]
[1757340903399,15.31506389,4327.2,4326.8,0.025]
[1757340903797,12.09956389,4327.2,4326.8,0.025]
[1757340903997,12.09956389,4327.2,4327.1,0.3234]
[1757340904198,9.78860069,4327.2,4327.1,0.3234]
[1757340904398,10.17771667,4327.2,4327.1,0.3234]
[1757340904596,10.17771667,4327.2,4327.1,2.5961]
[1757340904802,12.49941667,4327.2,4327.1,0.02]
[1757340905001,12.19971667,4327.2,4327.1,0.02]
[1757340905201,8.23671667,4327.2,4327.1,0.3234]
[1757340905403,8.881,4327.2,4327.1,3.0469]
[1757340906081,12.4219632,4327.2,4327.1,0.3234]
[1757340907118,10.111,4327.2,4327.1,3.0469]
[1757340907616,11.341,4327.2,4327.1,3.0469]
[1757340908417,7.38,4327.2,4327.1,3.0469]
[1757340908797,8.61,4327.2,4327.1,3.0469]
[1757340910314,9.84,4327.2,4327.1,5.35791661]
[1757340910828,9.84,4327.2,4327.1,5.35991661]
[1757340911805,11.07,4327.2,4327.1,5.35991661]
[1757340912838,11.07,4327.2,4327.1,0.3254]
[1757340913039,12.99600866,4327.2,4327.1,0.022]
[1757340913242,16.96607186,4327.2,4327.1,0.022]
[1757340914116,20.24477186,4327.2,4327.1,0.022]
[1757340914316,20.45865938,4327.2,4327.1,0.022]
[1757340914523,21.68865938,4327.2,4327.1,0.022]
[1757340915044,21.90253221,4327.2,4327.1,0.022]
[1757340915246,21.90253221,4327.2,4326.8,0.025]
[1757340915247,3.10312343,4326.9,4326.8,0.025]
[1757340915445,7.49388378,4326.9,4326.8,0.025]
[1757340915653,10.70938378,4326.9,4326.8,0.025]
[1757340915949,11.93938378,4326.9,4326.8,0.025]
[1757340916124,11.51028378,4326.9,4326.8,0.025]
[1757340916313,14.20729175,4326.9,4326.8,0.025]
[1757340916518,14.20649175,4326.9,4326.8,0.025]
[1757340917449,15.43649175,4326.9,4326.8,0.025]
[1757340917627,15.43649175,4326.9,4325.8,2.7485]
[1757340917628,0.792,4324.2,4323.8,0.025]
[1757340917814,21.62520887,4324.2,4323.8,0.025]
[1757340918011,27.0887208,4324.2,4323.8,0.025]
[1757340918252,0.792,4324.0,4323.8,0.025]
[1757340918548,7.3527134,4323.9,4323.8,0.025]
[1757340918753,10.78215837,4323.9,4323.8,0.025]
[1757340919069,3.83235837,4323.9,4323.8,0.025]
[1757340919229,6.5597134,4323.9,4323.8,0.025]
[1757340919828,4.24698647,4323.9,4323.8,0.3284]
[1757340920043,0.21398647,4323.9,4323.8,0.025]
[1757340920249,0.21398647,4323.9,4323.8,2.6011]
[1757340920435,1.44398647,4323.9,4323.8,2.6011]
[1757340920758,1.44398647,4323.9,4323.8,0.3284]
[1757340920929,1.44398647,4323.9,4323.8,0.025]
[1757340921432,1.44398647,4323.9,4323.8,0.3284]
[1757340921850,2.67398647,4323.9,4323.8,0.3284]
[1757340922055,2.67398647,4323.9,4323.8,3.0519]
[1757340922526,2.67398647,4323.9,4323.8,0.025]
[1757340922723,4.9867134,4323.9,4323.8,0.025]
[1757340922924,2.67398647,4323.9,4323.8,0.025]
[1757340923116,3.90398647,4323.9,4323.8,0.3284]
[1757340923535,7.94298647,4323.9,4323.8,0.3284]
[1757340923737,10.2557134,4323.9,4323.8,0.3284]
[1757340923961,7.94298647,4323.9,4323.8,0.3284]
[1757340924647,9.17298647,4323.9,4323.8,0.3284]
[1757340924869,9.17298647,4323.9,4323.8,3.116]
[1757340925049,5.13398647,4323.9,4323.8,3.116]
[1757340925258,4.92,4323.9,4323.8,3.116]
[1757340925997,6.15,4323.9,4323.8,3.116]
[1757340926296,6.15,4323.9,4323.8,5.42878042]
[1757340926595,6.15,4323.9,4323.8,8.97166774]
[1757340927060,6.15,4323.9,4323.8,13.00566774]
[1757340927263,1.23,4324.2,4324.1,2.31261996]
[1757340927573,1.23,4324.2,4324.1,5.51261996]
[1757340927893,1.23,4324.2,4324.1,14.27146515]
[1757340928054,1.23,4324.2,4324.1,7.92184519]
[1757340928254,1.23,4324.2,4324.1,5.6344]
[1757340928453,1.23,4324.2,4324.1,0.3096]
[1757340928844,2.46,4324.2,4324.1,0.3096]
[1757340929447,0.1152,4324.1,4323.8,1.8]
[1757340929653,0.1152,4324.1,4324.0,0.3096]
[1757340930150,1.3452,4324.1,4324.0,8.40987345]
[1757340930487,1.23,4324.1,4324.0,9.68213823]
[1757340931489,1.23,4324.1,4324.0,9.79733823]
[1757340931692,2.46,4324.1,4324.0,9.79733823]
[1757340932999,2.46,4324.1,4324.0,9.99733823]
[1757340933154,3.69,4324.1,4324.0,14.02933823]
[1757340934596,4.92,4324.1,4324.0,9.99733823]
[1757340934770,4.92,4324.1,4324.0,14.02633823]
[1757340935397,4.92,4324.1,4324.0,44.02633823]
[1757340935785,4.92,4324.1,4324.0,44.02233823]
[1757340935960,6.15,4324.1,4324.0,44.02233823]
[1757340936569,6.15,4324.1,4324.0,39.99733823]
[1757340936768,6.15,4324.1,4324.0,44.02033823]
[1757340937570,7.38,4324.1,4324.0,44.02033823]
[1757340938364,7.38,4324.1,4324.0,37.22186478]
[1757340938568,7.38,4324.1,4324.0,9.53367345]
[1757340938869,7.6688,4324.1,4324.0,5.51267345]
[1757340939078,8.61,4324.1,4324.0,9.53367345]
[1757340939280,8.61,4324.1,4324.0,12.63087345]
[1757340939827,8.8988,4324.1,4324.0,9.33267345]
[1757340940116,8.61,4324.1,4324.0,9.33267345]
[1757340940320,8.61,4324.1,4324.0,13.9859376]
[1757340940520,9.84,4324.1,4324.0,13.9859376]
[1757340940818,9.84,4324.1,4324.0,13.5231376]
[1757340942016,11.0692,4324.1,4324.0,11.1983376]
[1757340942401,11.822,4324.1,4323.8,0.025]
[1757340942603,2.911,4324.0,4323.9,4.017]
[1757340942913,2.911,4324.0,4323.9,7.017]
[1757340943118,3.1998,4324.0,4323.9,7.017]
[1757340943325,1.5188,4324.0,4323.9,7.017]
[1757340943635,1.23,4324.0,4323.9,12.68852693]
[1757340943921,1.5188,4324.0,4323.9,7.017]
[1757340944092,1.5188,4324.0,4323.9,3.0]
[1757340944422,1.5188,4324.0,4323.9,9.32872693]
[1757340944423,1.23,4324.0,4323.9,9.32872693]
[1757340944795,2.46,4324.0,4323.9,9.32872693]
[1757340945002,2.7488,4324.0,4323.9,3.0]
[1757340945312,2.46,4324.0,4323.9,9.32772693]
[1757340946295,3.69,4324.0,4323.9,9.32772693]
[1757340946485,3.69,4324.0,4323.9,9.83732693]
[1757340947515,4.92,4324.0,4323.9,12.62492693]
[1757340947902,4.92,4324.0,4323.9,9.83732693]
[1757340949118,6.15,4324.0,4323.9,12.62492693]
[1757340949318,6.15,4324.0,4323.9,12.16212693]
[1757340949895,6.15,4324.0,4323.9,14.08684223]
[1757340950102,6.15,4324.0,4323.9,14.20204223]
[1757340950324,7.38,4324.0,4323.9,14.20204223]
[1757340951388,7.38,4324.0,4323.9,9.63592693]
[1757340951618,7.6688,4324.0,4323.9,3.0]
[1757340951927,11.8098,4324.0,4323.9,7.007]
[1757340953225,13.0398,4324.0,4323.9,7.005]
[1757340953441,0.1152,4323.9,4323.8,0.027]
[1757340953592,7.0119349,4323.9,4323.8,0.027]
[1757340953788,7.7554349,4323.9,4323.8,0.027]
[1757340954035,7.9693991,4323.9,4323.8,0.027]
[1757340954431,5.65667217,4323.9,4323.8,0.027]
[1757340954661,6.88667217,4323.9,4323.8,0.027]
[1757340954813,6.88669713,4323.9,4323.8,0.027]
[1757340956025,8.11669713,4323.9,4323.8,0.027]
[1757340956349,10.42942406,4323.9,4323.8,0.027]
[1757340956710,8.11669713,4323.9,4323.8,0.027]
[1757340956948,10.42942406,4323.9,4323.8,0.027]
[1757340957150,8.11669713,4323.9,4323.8,0.027]
[1757340957447,6.36500797,4323.9,4323.8,0.027]
[1757340957646,3.8052,4323.9,4323.8,0.027]
[1757340957809,4.5487,4323.9,4323.8,0.027]
[1757340958614,3.8052,4323.9,4323.8,0.027]
[1757340958935,5.0352,4323.9,4323.8,8.55558042]
[1757340959307,4.92,4323.9,4323.8,8.08598042]
[1757340959547,4.92,4323.9,4323.8,8.28598042]
[1757340960124,6.15,4323.9,4323.8,8.28598042]
[1757340960650,6.05,4323.9,4323.8,10.26272673]
[1757340961559,7.28,4323.9,4323.8,10.26272673]